fUST/lending_fUST_20240410
["ID","MTS","AMOUNT","RATE_DAILY","PERIOD"]
[322061550,1712736642123,282.81584181,0.00021001,2]
[322061704,1712736643436,-34372.48874765,0.00021002,2]
[322061725,1712736643616,-8024.32365261,0.00021002,2]
[322061856,1712736646681,-1281.04532709,0.00021002,2]
[322061858,1712736646691,-225.55190173,0.00021002,2]
[322061860,1712736646700,-2093.77755635,0.00021002,2]
[322061862,1712736646709,-364.74168,0.00021008,2]
[322061864,1712736646718,-300.0,0.0002101,2]
[322061866,1712736646727,-300.0,0.0002101,2]
[322061868,1712736646737,-2925.75095015,0.00021011,2]
[322061870,1712736646746,-260.88742255,0.00021011,2]
[322061872,1712736646755,-34582.5616522,0.0002173,2]
[322063638,1712736775575,942.5658747,0.0002098,2]
[322063639,1712736883718,24900.0,0.00020994,2]
[322063640,1712736898039,153.21588608,0.00020952,2]
[322063641,1712736901452,275.85367844,0.00018902,2]
[322063643,1712737202723,491.10513656,0.00018902,2]
[322063647,1712737504086,327.40342438,0.00018902,2]
[322063648,1712737595731,5434.46321616,0.00018,2]
[322063655,1712737805217,218.26894958,0.000189,2]
[322064681,1712737842950,-297.94401497,0.00021607,2]
[322065054,1712737869702,160.1081193,0.00020824,2]
[322065057,1712738106784,150.0,0.000189,2]
[322065058,1712738230367,691.0645901,0.0002083,2]
[322065064,1712738409187,150.0,0.000189,2]
[322065068,1712738506529,24900.0,0.00020575,2]
[322065125,1712739032306,-2580.65641681,0.0002142,2]
[322065126,1712739032316,-1866.41705732,0.00021421,2]
[322065127,1712739032325,-868.7486336,0.00021422,2]
[322065128,1712739032334,-947.33933489,0.00021422,2]
[322065129,1712739032344,-887.0189653,0.00021423,2]
[322065130,1712739032354,-154.93802479,0.00021423,2]
[322065131,1712739032363,-225.55190173,0.00021423,2]
[322065132,1712739032372,-154.93802479,0.00021424,2]
[322065133,1712739032382,-300.0,0.00021424,2]
[322065134,1712739032392,-8120.78462975,0.00021424,2]
[322065135,1712739032401,-300.0,0.00021425,2]
[322065136,1712739032410,-164.60794169,0.00021469,2]
[322065137,1712739032419,-579.5794927,0.00021716,2]
[322065138,1712739032429,-8095.76990523,0.0002173,2]
[322065139,1712739032439,-158.55609735,0.00022,2]
[322065140,1712739032449,-3719.10840679,0.00022154,2]
[322065141,1712739032459,-24900.0,0.00022155,2]
[322065142,1712739032469,-164.60794165,0.00023137,2]
[322065143,1712739032479,-420.0,0.00023294,2]
[322065144,1712739032489,-420.0,0.00023568,2]
[322065145,1712739032500,-8139.51448875,0.00024,2]
[322065146,1712739032510,-4999.999,0.000244,3]
[322065147,1712739032521,-380.0,0.00024658,2]
[322065148,1712739032531,-500.0,0.0002472,2]
[322065149,1712739032540,-164.60794165,0.00024804,2]
[322065150,1712739032552,-19966.53882765,0.0002488,2]
[322065151,1712739032561,-1408.62571524,0.000249,2]
[322065152,1712739032571,-1012.68584203,0.00025,2]
[322065153,1712739032581,-24679.53635869,0.00025,7]
[322065154,1712739032591,-221.71195215,0.00025,2]
[322065198,1712739038034,-220.22760662,0.000252,2]
[322065199,1712739038044,-587.0,0.00025328,2]
[322065200,1712739038055,-621.81300657,0.00025447,2]
[322065201,1712739038064,-2299.9869379,0.000255,4]
[322065202,1712739038073,-389.75630827,0.00025678,2]
[322065203,1712739038082,-587.0,0.00025924,2]
[322065204,1712739038091,-342.35654878,0.0002619,2]
[322065205,1712739038101,-156.53326933,0.0002624,2]
[322065206,1712739038110,-164.60794165,0.00026472,2]
[322065207,1712739038119,-620.09065033,0.00026719,2]
[322065208,1712739038129,-154.9690062,0.00027,2]
[322065209,1712739038139,-1408.6257152,0.0002715,2]
[322065210,1712739038148,-546.297006,0.00027397,2]
[322065211,1712739038157,-487.840582,0.00027397,2]
[322065212,1712739038167,-189.750424,0.00027397,2]
[322065213,1712739038177,-325.832575,0.00027397,2]
[322065214,1712739038187,-166.666666,0.00027397,2]
[322065215,1712739038196,-754.21396715,0.000274,2]
[322065216,1712739038206,-214.26630428,0.00027498,2]
[322065217,1712739038216,-509.52827812,0.00027498,2]
[322065218,1712739038229,-417.88175755,0.00027498,2]
[322065219,1712739038239,-500.0,0.00027498,2]
[322065220,1712739038249,-422.85577051,0.00027498,2]
[322065221,1712739038259,-500.0,0.00027498,2]
[322065222,1712739038269,-500.0,0.00027498,2]
[322065223,1712739038279,-500.0,0.00027498,2]
[322065224,1712739038289,-500.0,0.00027498,2]
[322065226,1712739038302,-500.0,0.00027498,2]
[322065227,1712739038312,-500.0,0.00027498,2]
[322065228,1712739038323,-500.0,0.00027498,2]
[322065229,1712739038335,-500.0,0.00027498,2]
[322065230,1712739038346,-500.0,0.00027498,2]
[322065232,1712739038356,-500.0,0.00027498,2]
[322065233,1712739038366,-500.0,0.00027498,2]
[322065235,1712739038377,-500.0,0.00027498,2]
[322065237,1712739038388,-500.0,0.00027498,2]
[322065239,1712739038399,-500.0,0.00027498,2]
[322065241,1712739038410,-500.0,0.00027498,2]
[322065244,1712739038421,-401.10474086,0.00027498,2]
[322065246,1712739038433,-500.0,0.00027498,2]
[322065247,1712739038444,-500.0,0.00027498,2]
[322065249,1712739038455,-500.0,0.00027498,2]
[322065251,1712739038466,-500.0,0.00027498,2]
[322065253,1712739038476,-500.0,0.00027498,2]
[322065255,1712739038486,-500.0,0.00027498,2]
[322065257,1712739038497,-500.0,0.00027498,2]
[322065259,1712739038507,-43171.49859057,0.000275,2]
[322065261,1712739038517,-313.0,0.0002754,2]
[322065264,1712739038528,-166.666666,0.00028038,2]
[322065266,1712739038538,-164.60794165,0.00028139,2]
[322065268,1712739038548,-823.0,0.00028517,2]
[322065270,1712739038557,-166.666666,0.00028679,2]
[322065272,1712739038566,-397.2968638,0.00028888,2]
[322065273,1712739038576,-166.666666,0.00029321,2]
[322065275,1712739038585,-1408.6257152,0.00029399,2]
[322065278,1712739038594,-164.60794165,0.00029807,2]
[322065279,1712739038603,-166.666666,0.00029962,2]
[322065282,1712739038612,-154.9690062,0.0003,4]
[322065283,1712739038621,-8439.0,0.0003,30]
[322065286,1712739038630,-183.0,0.0003,2]
[322065288,1712739038639,-154.93802479,0.0003,4]
[322065289,1712739038649,-251.34479748,0.00030551,2]
[322065291,1712739038658,-166.666666,0.00030603,2]
[322065294,1712739038667,-1152.0,0.00031368,2]
[322065296,1712739038676,-23974.96481868,0.00031376,2]
[322065409,1712739043441,-221.609,0.00024439,2]
[322065412,1712739043451,-762.24072163,0.00031376,2]
[322069342,1712739232514,3087.85627332,0.0002,2]
[322069343,1712739257173,2563.24271846,0.000125,2]
[322069376,1712739611136,50000.0,0.00024,2]
[322070143,1712740238326,-154.92253873,0.0002397,2]
[322070146,1712740238335,-5784.90920352,0.0002397,2]
[322070148,1712740238344,-154.92253873,0.00023971,2]
[322070150,1712740238353,-158.55609735,0.00023971,2]
[322070152,1712740238362,-1866.41705732,0.00023971,2]
[322070154,1712740238371,-300.0,0.00023972,2]
[322070156,1712740238380,-6767.32052479,0.00023972,2]
[322070158,1712740238389,-39289.39513902,0.00024,2]
[322070310,1712740243428,-4884.45010267,0.00024,2]
[322070311,1712740243438,-636.0463378,0.00024712,2]
[322070312,1712740243447,-478.43742362,0.00024712,2]
[322070313,1712740243456,-680.40930581,0.00024713,2]
[322070393,1712741432430,-154.92253873,0.00024683,2]
[322070395,1712741432442,-158.55609735,0.00024684,2]
[322070398,1712741432451,-618.81947456,0.00024684,2]
[322070491,1712741438383,-1462.44572891,0.00024684,2]
[322070493,1712741438394,-1444.50878995,0.00024684,2]
[322070495,1712741438404,-1866.41705732,0.00024685,2]
[322070497,1712741438413,-154.93802479,0.00027,2]
[322070499,1712741438422,-300.0,0.00027396,2]
[322070501,1712741438431,-518.982155,0.00027397,2]
[322070503,1712741438442,-463.448552,0.00027397,2]
[322070505,1712741438452,-189.750424,0.00027397,2]
[322070507,1712741438461,-479.62622945,0.0002826,2]
[322070509,1712741438470,-166.666666,0.00028278,2]
[322070522,1712741438479,-7488.1781129,0.00028711,2]
[322070523,1712741438599,-166.666666,0.00029049,2]
[322070524,1712741438609,-166.666666,0.0002982,2]
[322070525,1712741438618,-500.0,0.00029981,2]
[322070526,1712741438627,-154.93802479,0.0003,4]
[322070527,1712741438636,-1211.3943755,0.0003,2]
[322070528,1712741438645,-1211.51545439,0.0003,2]
[322070529,1712741438655,-420.0,0.00030136,2]
[322070530,1712741438666,-166.666666,0.00030591,2]
[322070531,1712741438677,-505.50248168,0.00031219,2]
[322070532,1712741438687,-456.72036944,0.00031345,5]
[322070533,1712741438701,-10017.61606535,0.00031345,5]
[322070534,1712741438710,-166.666666,0.00031362,2]
[322070535,1712741438720,-295.8912181,0.00031376,4]
[322070536,1712741438729,-1013.33930327,0.00031376,4]
[322070537,1712741438739,-3090.19358259,0.00031376,4]
[322070538,1712741438748,-165.2889272,0.00031376,2]
[322070539,1712741438759,-150.0,0.000315,2]
[322070540,1712741438769,-123.2980322,0.000318,2]
[322070541,1712741438780,-928.82000001,0.000318,2]
[322072235,1712742640659,-154.92253873,0.00027396,2]
[322072236,1712742640669,-309.540946,0.00027397,2]
[322072237,1712742640678,-65.41560527,0.000299,2]
[322072238,1712742640690,-93.98328401,0.000299,2]
[322072239,1712742640701,-434.04671599,0.00029999,2]
[322072240,1712742640712,-553.2,0.00029999,2]
[322072241,1712742640724,-532.32,0.00029999,2]
[322073386,1712742854471,750.04789537,0.00021,5]
[322077178,1712744258412,500.0,0.00026,120]
[322077179,1712744258439,1663.83776392,0.00026,120]
[322077183,1712744694542,10218.32178862,0.00026,10]
[322077193,1712744800117,-3525.77399342,0.00024997,2]
[322077194,1712744800139,-300.0,0.00024997,2]
[322077195,1712744800158,-4405.91286288,0.00024998,2]
[322077196,1712744882124,2408.16599429,0.00024998,5]
[322077197,1712744896113,1192.58693059,0.00024998,5]
[322077198,1712744932868,434.7116596,0.0002478,4]
[322077272,1712745032079,-300.0,0.00024779,2]
[322077274,1712745032088,-247.77431208,0.0002478,2]
[322077277,1712745032097,-150.46592423,0.0002478,2]
[322077579,1712745043367,-15900.630134,0.0002478,2]
[322077581,1712745043376,-154.90705577,0.0002478,2]
[322077583,1712745043385,-384.95307867,0.0002478,2]
[322077585,1712745043394,-369.24032327,0.000249,2]
[322077587,1712745043403,-427.76940829,0.00024998,2]
[322077605,1712745043565,-5473.41887515,0.00024998,2]
[322077607,1712745043574,-2092.8334783,0.00025,2]
[322077609,1712745043583,-923.60014146,0.00025,2]
[322077611,1712745043592,-2299.9869379,0.00026,4]
[322077613,1712745043602,-220.22760662,0.00026,2]
[322077615,1712745043611,-309.75219824,0.00026,2]
[322077617,1712745043620,-237.78737328,0.00026,2]
[322077619,1712745043629,-24679.53635869,0.00026,7]
[322077621,1712745043637,-151.0,0.00026,2]
[322077623,1712745043646,-151.0,0.00026,2]
[322077625,1712745043655,-151.0,0.00026,2]
[322077627,1712745043665,-151.0,0.00026,2]
[322077629,1712745043676,-151.0,0.00026,2]
[322077631,1712745043685,-242.992108,0.00026,2]
[322077633,1712745043695,-151.0,0.00026,2]
[322077635,1712745043704,-151.0,0.00026,2]
[322077637,1712745043713,-199.109944,0.00026,2]
[322077639,1712745043722,-433.157577,0.00026,2]
[322077641,1712745043731,-433.157577,0.00026,2]
[322077643,1712745043740,-433.157577,0.00026,2]
[322077645,1712745043748,-433.157577,0.00026,2]
[322077646,1712745043757,-151.0,0.00026,2]
[322077648,1712745043767,-151.0,0.00026,2]
[322077650,1712745043776,-369.24032321,0.00026312,3]
[322077652,1712745043786,-420.0,0.00027257,2]
[322077655,1712745043795,-594.47795951,0.00027297,2]
[322077656,1712745043804,-151.0,0.00027397,2]
[322077658,1712745043813,-151.0,0.00027397,2]
[322077660,1712745043822,-151.0,0.00027397,2]
[322077662,1712745043832,-433.157577,0.00027397,2]
[322077664,1712745043841,-433.157577,0.00027397,2]
[322077666,1712745043850,-493.033047,0.00027397,2]
[322077668,1712745043859,-440.276124,0.00027397,2]
[322077670,1712745043868,-189.750424,0.00027397,2]
[322077672,1712745043878,-294.063898,0.00027397,2]
[322077674,1712745043887,-94.11605114,0.00027397,2]
[322077677,1712745043898,-72.55061486,0.00027397,2]
[322077678,1712745043907,-694.32822449,0.00027453,2]
[322077681,1712745043916,-151.0,0.00027453,2]
[322077682,1712745043927,-433.157577,0.00027453,2]
[322077685,1712745043936,-433.157577,0.00027453,2]
[322077686,1712745043945,-799.54878138,0.000275,17]
[322077688,1712745043954,-369.24032321,0.00027725,3]
[322077690,1712745043963,-433.157577,0.00028038,2]
[322077692,1712745043972,-433.157577,0.00028038,2]
[322077694,1712745043981,-166.666666,0.00028038,2]
[322077697,1712745043990,-151.0,0.00028231,2]
[322077698,1712745043999,-166.666666,0.00028679,2]
[322077701,1712745044008,-594.47795951,0.00029165,2]
[322077702,1712745044017,-3333.57731285,0.00029186,2]
[322077810,1712746238211,-159.91979449,0.0002468,2]
[322077811,1712746238221,-3525.77399342,0.00024779,2]
[322077812,1712746238231,-174.10604275,0.0002478,2]
[322077813,1712746238240,-196.17777821,0.0002478,2]
[322077814,1712746238249,-316.82341025,0.00025,2]
[322077815,1712746238259,-159.91979443,0.00025799,2]
[322077816,1712746238268,-300.0,0.00026669,2]
[322077817,1712746238278,-3227.23938702,0.0002667,2]
[322077885,1712746240209,-1118.35858124,0.0002667,2]
[322077886,1712746240220,-1327.02629349,0.0002667,2]
[322078027,1712746243462,-6006.10281245,0.0002667,2]
[322078028,1712746243473,-159.91979443,0.00026919,2]
[322078029,1712746243482,-468.381394,0.00027397,2]
[322078030,1712746243492,-166.666666,0.00027397,2]
[322078031,1712746243502,-418.262317,0.00027397,2]
[322078032,1712746243512,-799.54878138,0.000275,17]
[322078033,1712746243522,-159.91979443,0.00028038,2]
[322078035,1712746243531,-166.666666,0.00028038,2]
[322078037,1712746243541,-166.666666,0.00028679,2]
[322078039,1712746243550,-230.77520205,0.00029086,4]
[322078041,1712746243560,-159.91979443,0.00029158,2]
[322078043,1712746243569,-220.22760662,0.00029186,2]
[322078045,1712746243579,-10165.61335744,0.00029186,2]
[322078047,1712746243592,-4250.61869899,0.00029186,2]
[322078391,1712746458588,1185.57237452,0.000125,2]
[322078392,1712746826318,11413.61656928,0.000125,2]
[322078430,1712747438488,-1017.54423703,0.00024303,2]
[322078433,1712747438501,-423.8636,0.00024303,2]
[322078591,1712747440485,-3770.40796041,0.00024303,2]
[322078592,1712747440495,-1012.68584203,0.00025,2]
[322078593,1712747440504,-300.0,0.00025999,2]
[322078594,1712747440513,-40189.0,0.00026,2]
[322078595,1712747440523,-222.24496354,0.0002733,3]
[322078596,1712747440532,-166.666666,0.00027397,2]
[322078597,1712747440541,-166.666666,0.00028038,2]
[322078598,1712747440551,-222.24496347,0.00028393,4]
[322078599,1712747440560,-420.0,0.00028599,2]
[322078600,1712747440569,-166.666666,0.00028679,2]
[322078601,1712747440578,-2299.9869379,0.00029186,4]
[322078602,1712747440587,-754.21396715,0.00029186,2]
[322078603,1712747440596,-220.22760662,0.00029186,2]
[322078604,1712747440606,-166.666666,0.00029321,2]
[322078605,1712747440615,-222.24496347,0.00029456,4]
[322078606,1712747440625,-166.666666,0.00029962,2]
[322078607,1712747440634,-154.92253873,0.0003,4]
[322078608,1712747440644,-3000.0,0.0003,2]
[322078609,1712747440653,-1000.0,0.0003,2]
[322078610,1712747440662,-1211.2733208,0.0003,2]
[322078611,1712747440671,-222.24496347,0.00030519,5]
[322078612,1712747440680,-166.666666,0.00030603,2]
[322078613,1712747440690,-1000.0,0.00031,2]
[322078614,1712747440699,-238.0731801,0.00031041,2]
[322078615,1712747440708,-153.0,0.00031373,2]
[322078616,1712747440717,-587.0,0.00031459,2]
[322078617,1712747440726,-222.24496347,0.00031581,5]
[322078618,1712747440735,-638.41191877,0.000317,2]
[322078619,1712747440744,-500.0,0.000318,2]
[322078620,1712747440753,-1211.2733208,0.000318,2]
[322078621,1712747440762,-1000.0,0.00032,32]
[322078622,1712747440772,-190.82879754,0.00032,4]
[322078623,1712747440781,-306.0,0.00032113,2]
[322078624,1712747440790,-153.0,0.00032113,2]
[322078625,1712747440800,-202.7418102,0.00032113,2]
[322078626,1712747440809,-153.0,0.00032113,2]
[322078627,1712747440818,-153.0,0.00032113,2]
[322078628,1712747440828,-153.0,0.00032113,2]
[322078629,1712747440837,-153.0,0.00032113,2]
[322078630,1712747440846,-153.0,0.00032113,2]
[322078631,1712747440855,-153.0,0.00032113,2]
[322078632,1712747440864,-153.0,0.00032113,2]
[322078633,1712747440873,-153.0,0.00032113,2]
[322078634,1712747440882,-638.41191875,0.00032375,2]
[322078635,1712747440892,-222.24496347,0.00032644,6]
[322078636,1712747440901,-2000.0,0.00032776,2]
[322078637,1712747440910,-216.578789,0.00032776,2]
[322078638,1712747440919,-216.578789,0.00032776,2]
[322078639,1712747440928,-218.36926205,0.00032875,2]
[322078640,1712747440937,-500.0,0.00032875,2]
[322078641,1712747440946,-181.22390165,0.00032875,2]
[322078642,1712747440954,-500.0,0.00032875,2]
[322078643,1712747440964,-500.0,0.00032875,2]
[322078644,1712747440973,-500.0,0.00032875,2]
[322078645,1712747440981,-570.33142226,0.00032875,2]
[322078646,1712747440991,-500.0,0.00032875,2]
[322078647,1712747441000,-500.0,0.00032875,2]
[322078648,1712747441009,-500.0,0.00032875,2]
[322078649,1712747441019,-500.0,0.00032875,2]
[322078650,1712747441028,-151.0,0.00032875,2]
[322078651,1712747441037,-216.578789,0.00032875,2]
[322078652,1712747441047,-216.578789,0.00032875,2]
[322078653,1712747441057,-27507.70320215,0.00032876,2]
[322078654,1712747441066,-505.73921587,0.00032876,5]
[322078655,1712747441075,-302.0,0.00032876,7]
[322078656,1712747441085,-300.0,0.00032876,7]
[322078657,1712747441094,-500.0,0.00032876,5]
[322078658,1712747441104,-500.0,0.00032876,5]
[322078659,1712747441114,-500.0,0.00032876,5]
[322078660,1712747441125,-509.99280352,0.00032876,5]
[322078661,1712747441135,-500.0,0.00032876,5]
[322078662,1712747441145,-500.0,0.00032876,5]
[322078663,1712747441155,-385.6378976,0.00032876,5]
[322078664,1712747441164,-534.75236192,0.00032876,5]
[322078665,1712747441173,-501.61083213,0.00032876,5]
[322078666,1712747441184,-504.20112112,0.00032876,5]
[322078667,1712747441197,-502.51844573,0.00032876,5]
[322078668,1712747441206,-500.0,0.00032876,5]
[322078669,1712747441216,-259.4446065,0.00032876,5]
[322078670,1712747441226,-500.0,0.00032876,5]
[322078671,1712747441236,-500.0,0.00032876,5]
[322078672,1712747441245,-430.42685716,0.00032876,5]
[322078673,1712747441254,-500.0,0.00032876,5]
[322078674,1712747441264,-491.02514145,0.00032876,5]
[322078675,1712747441273,-500.0,0.00032876,5]
[322078676,1712747441282,-501.32254633,0.00032876,5]
[322078677,1712747441292,-500.0,0.00032876,5]
[322078678,1712747441304,-500.0,0.00032876,5]
[322078679,1712747441313,-500.0,0.00032876,2]
[322078680,1712747441321,-500.0,0.00032876,2]
[322078681,1712747441330,-500.0,0.00032876,2]
[322078682,1712747441340,-500.0,0.00032876,2]
[322078683,1712747441349,-500.0,0.00032876,5]
[322078684,1712747441358,-500.0,0.00032876,5]
[322078685,1712747441367,-501.02887734,0.00032876,5]
[322078686,1712747441376,-500.0,0.00032876,5]
[322078687,1712747441385,-336.16,0.00032876,5]
[322078688,1712747441394,-151.0,0.00032876,2]
[322078689,1712747441403,-151.0,0.00032876,2]
[322078690,1712747441413,-500.0,0.00032876,5]
[322078691,1712747441422,-641.10681484,0.00032876,5]
[322078692,1712747441431,-500.0,0.00032876,5]
[322078693,1712747441443,-500.0,0.00032876,5]
[322078694,1712747441452,-500.0,0.00032876,5]
[322078695,1712747441461,-500.0,0.00032876,5]
[322078696,1712747441470,-500.0,0.00032876,5]
[322078697,1712747441479,-151.0,0.00032876,2]
[322078698,1712747441488,-151.0,0.00032876,2]
[322078699,1712747441497,-223.96241494,0.00032876,5]
[322078700,1712747441506,-500.0,0.00032876,5]
[322078701,1712747441515,-500.3095635,0.00032876,5]
[322078702,1712747441524,-501.94460501,0.00032876,5]
[322078703,1712747441533,-500.0,0.00032876,5]
[322078704,1712747441542,-500.0,0.00032876,5]
[322078705,1712747441552,-500.0,0.00032876,5]
[322078706,1712747441560,-500.0,0.00032876,5]
[322078707,1712747441569,-500.0,0.00032876,5]
[322078708,1712747441578,-500.0,0.00032876,5]
[322078709,1712747441587,-502.51115364,0.00032876,5]
[322078710,1712747441596,-341.57944337,0.00032876,5]
[322078711,1712747441604,-1066.64,0.00032876,5]
[322078712,1712747441614,-1066.64,0.00032876,5]
[322078713,1712747441623,-1066.64,0.00032876,5]
[322078714,1712747441632,-1066.64,0.00032876,5]
[322078715,1712747441641,-500.0,0.00032876,5]
[322078716,1712747441650,-300.0,0.00032876,5]
[322078717,1712747441660,-500.0,0.00032876,5]
[322078718,1712747441669,-210.95797966,0.00032876,5]
[322078719,1712747441678,-613.86206519,0.00032876,5]
[322078720,1712747441687,-500.0,0.00032876,5]
[322078721,1712747441696,-501.52670388,0.00032876,5]
[322078722,1712747441705,-506.7451759,0.00032876,5]
[322078723,1712747441714,-500.0,0.00032876,5]
[322078724,1712747441725,-500.0,0.00032876,5]
[322078725,1712747441734,-500.0,0.00032876,5]
[322078726,1712747441743,-500.0,0.00032876,5]
[322078727,1712747441752,-500.0,0.00032876,5]
[322078728,1712747441761,-500.0,0.00032876,5]
[322078729,1712747441770,-500.0,0.00032876,5]
[322078730,1712747441779,-500.0,0.00032876,5]
[322078731,1712747441788,-500.0,0.00032876,5]
[322078732,1712747441798,-500.0,0.00032876,5]
[322078733,1712747441807,-500.0,0.00032876,5]
[322078734,1712747441816,-500.0,0.00032876,5]
[322078735,1712747441825,-500.0,0.00032876,5]
[322078736,1712747441835,-500.0,0.00032876,5]
[322078737,1712747441843,-500.0,0.00032876,5]
[322078738,1712747441853,-500.0,0.00032876,5]
[322078739,1712747441862,-573.04,0.00032876,5]
[322078740,1712747441871,-573.04,0.00032876,5]
[322078741,1712747441880,-573.04,0.00032876,5]
[322078742,1712747441889,-573.04,0.00032876,5]
[322078743,1712747441899,-500.0,0.00032876,5]
[322078744,1712747441908,-227.17326305,0.00032876,5]
[322078745,1712747441917,-500.0,0.00032876,5]
[322078746,1712747441927,-500.0,0.00032876,5]
[322078747,1712747441936,-500.0,0.00032876,5]
[322078748,1712747441945,-500.0,0.00032876,5]
[322078749,1712747441954,-500.0,0.00032876,5]
[322078750,1712747441963,-500.0,0.00032876,5]
[322078751,1712747441972,-500.0,0.00032876,5]
[322078752,1712747441982,-359.90283038,0.00032876,5]
[322078753,1712747441991,-500.0,0.00032876,5]
[322078754,1712747441999,-426.01192026,0.00032876,5]
[322078755,1712747442008,-583.7,0.00032876,5]
[322078756,1712747442017,-249.24631275,0.00032876,5]
[322078757,1712747442026,-631.35,0.00032876,5]
[322078758,1712747442035,-151.0,0.00032876,2]
[322078759,1712747442045,-151.0,0.00032876,2]
[322078760,1712747442054,-267.283925,0.00032876,2]
[322078761,1712747442063,-500.0,0.00032876,5]
[322078762,1712747442073,-500.0,0.00032876,5]
[322078763,1712747442082,-500.0,0.00032876,5]
[322078764,1712747442091,-500.0,0.00032876,5]
[322078765,1712747442100,-500.0,0.00032876,5]
[322078766,1712747442109,-500.0,0.00032876,5]
[322078767,1712747442119,-500.0,0.00032876,5]
[322078768,1712747442128,-500.0,0.00032876,5]
[322078769,1712747442138,-500.0,0.00032876,5]
[322078770,1712747442146,-638.52,0.00032876,5]
[322078771,1712747442155,-500.0,0.00032876,5]
[322078772,1712747442164,-500.0,0.00032876,5]
[322078773,1712747442173,-500.0,0.00032876,5]
[322078774,1712747442182,-500.0,0.00032876,5]
[322078775,1712747442195,-500.0,0.00032876,5]
[322078776,1712747442204,-500.0,0.00032876,5]
[322078777,1712747442213,-500.0,0.00032876,5]
[322078778,1712747442223,-500.0,0.00032876,5]
[322078779,1712747442232,-500.0,0.00032876,5]
[322078780,1712747442241,-500.0,0.00032876,5]
[322078781,1712747442250,-500.0,0.00032876,5]
[322078782,1712747442260,-500.0,0.00032876,5]
[322078783,1712747442269,-456.39051505,0.00032876,5]
[322078784,1712747442278,-500.0,0.00032876,5]
[322078785,1712747442287,-500.0,0.00032876,5]
[322078786,1712747442296,-500.0,0.00032876,5]
[322078787,1712747442305,-500.0,0.00032876,5]
[322078788,1712747442314,-500.0,0.00032876,5]
[322078789,1712747442322,-500.0,0.00032876,5]
[322078790,1712747442331,-500.0,0.00032876,5]
[322078791,1712747442341,-500.0,0.00032876,5]
[322078792,1712747442350,-500.0,0.00032876,5]
[322078793,1712747442359,-500.0,0.00032876,5]
[322078794,1712747442368,-500.0,0.00032876,5]
[322078795,1712747442376,-500.0,0.00032876,5]
[322078796,1712747442386,-278.91813224,0.00032876,5]
[322078817,1712747443838,-221.08186776,0.00032876,5]
[322078818,1712747443848,-502.48175324,0.00032876,5]
[322078819,1712747443858,-1969.62,0.00032876,5]
[322078820,1712747443867,-1969.62,0.00032876,5]
[322078821,1712747443876,-1969.62,0.00032876,5]
[322078822,1712747443885,-1969.62,0.00032876,5]
[322078823,1712747443894,-1969.62,0.00032876,5]
[322078824,1712747443903,-500.0,0.00032876,5]
[322078825,1712747443913,-500.0,0.00032876,5]
[322078826,1712747443922,-500.0,0.00032876,5]
[322078827,1712747443931,-500.0,0.00032876,5]
[322078828,1712747443940,-500.0,0.00032876,5]
[322078829,1712747443949,-500.0,0.00032876,5]
[322078830,1712747443958,-500.0,0.00032876,5]
[322078831,1712747443967,-500.0,0.00032876,5]
[322078832,1712747443977,-500.0,0.00032876,5]
[322078833,1712747443986,-500.0,0.00032876,5]
[322078834,1712747443995,-254.84,0.00032876,5]
[322078835,1712747444005,-500.0,0.00032876,5]
[322078836,1712747444014,-323.66,0.00032876,5]